[Event "10th Cherry Blossom Classic 2023"]
[Site "Dulles"]
[Date "2023.05.25"]
[Round "1.21"]
[White "Marjanovic, Annamaria"]
[Black "Shoykhet, Benjamin"]
[Result "1/2-1/2"]
[ECO "E05"]
[WhiteElo "2273"]
[BlackElo "1919"]
[Annotator "TA"]
[PlyCount "71"]
[EventDate "2023.05.24"]
[EventType "swiss"]
[EventCountry "USA"]
[SourceTitle "playchess.com"]
[Source "ChessBase"]
[SourceQuality "1"]
[TimeControl "5400+30"]

{[%evp 21,71,8,15,6,6,0,13,5,20,-6,9,3,17,0,0,0,8,0,25,6,21,22,46,45,44,7,21,0,17,0,0,0,0,0,0,-54,-54,-152,-166,-127,-128,-321,-315,-366,-330,-310,-64,-65,-68,-56,-26,-89]} 1. d4 {[%emt 0:00:03]} Nf6 {[%emt 0:00:13]} 2. c4 {[%emt 0:00:11]} e6 {[%emt 0:00:14]} 3. g3 {[%emt 0:00:16]} d5 {[%emt 0:00:20]} 4. Bg2 {[%emt 0:00:28]} Be7 {[%emt 0:00:19]} 5. Nf3 {[%emt 0:00:58]} O-O {[%emt 0:00:25]} 6. O-O {[%emt 0:00:15]} dxc4 {[%emt 0:00:55]} 7. Qc2 {[%emt 0:00:28]} a6 {[%emt 0:00:15]} 8. a4 {[%emt 0:00:15]} Bd7 {[%emt 0:00:53]} 9. Qxc4 {[%emt 0:00:23]} Bc6 {[%emt 0:00:36]} 10. Bg5 {[%emt 0:00:14]} Nbd7 {[%emt 0:00:17]} 11. Nc3 {[%emt 0:05:03]} h6 {[%emt 0:01:49]} 12. Bxf6 {[%emt 0:06:11] E05: Open Catalan: 5 Nf3 Be7.} Nxf6 {[%emt 0:00:10]} 13. Ne5 {[%emt 0:00:22]} Bxg2 {[%emt 0:01:57]} 14. Kxg2 {[%emt 0:00:09] The position is equal.} a5 {[%emt 0:14:41]} 15. e4 {[%emt 0:07:53]} c6 {[%emt 0:02:11]} 16. Rfd1 {[%emt 0:07:53]} Qb6 {[%emt 0:06:18]} 17. Rd2 {[%emt 0:12:06]} Rad8 {[%emt 0:12:57]} 18. Rad1 {[%emt 0:03:15]} Bb4 {[%emt 0:11:38] [#]} 19. f3 $146 {[%emt 0:03:17]} ({Predecessor:} 19. Qe2 Qc7 20. f4 Nd7 21. Nd3 Nb6 22. Nxb4 axb4 23. Na2 Nxa4 24. Qc4 {0-1 Umansky,M (2468)-Begovac,F (2421) SUI-chT Switzerland 2002 (5.3)}) 19... Rd6 {[%emt 0:07:42]} 20. Rd3 {[%emt 0:08:59]} Nd7 {[%emt 0:10:41][%cal Bf6d7,Bd7b6,Bb6a4,Ba4c3][%mdl 32]} 21. Ng4 {[%emt 0:07:37] Black must now prevent e5.} Qa7 {[%emt 0:03:36]} (21... h5 {is more complex.} 22. Ne3 e5 23. Nf5 Rf6) 22. Na2 {[%emt 0:08:20]} Nb6 {[%emt 0:00:11][%csl LRa4,LRc4]} 23. Qb3 {[%emt 0:02:16]} (23. Qc2 $5 {[%cal Ra2b4]}) 23... Rfd8 {[%emt 0:00:15]} 24. Ne3 {[%emt 0:05:08]} R6d7 {[%emt 0:03:35]} 25. Nxb4 {[%emt 0:03:41]} (25. Qc2 $5 {[%cal Ra2b4]}) 25... axb4 {[%emt 0:00:05]} 26. Qxb4 {[%emt 0:00:09]} Nxa4 {[%emt 0:00:40]} 27. Ra3 {[%emt 0:02:12]} b5 {[%emt 0:02:01][%cal Rd7d4]} 28. Nc2 {[%emt 0:02:18]} ({Better is} 28. d5 $1 $11) 28... Qb7 $15 {[%emt 0:03:18][%cal Oc6c5]} 29. b3 {[%emt 0:06:19] [#]} (29. Ne3 $15) 29... c5 $1 $36 {[%emt 0:01:59][%mdl 2560] Black has strong initiative.} 30. Qa5 {[%emt 0:00:17] [#]} (30. Qe1 Nc3) 30... Nc3 {[%emt 0:03:15][%mdl 64] Decoy} 31. Rd3 {[%emt 0:02:07]} (31. Qxc3 $17 {only move.} b4 32. Qxc5 (32. Nxb4 $2 cxb4 $19) 32... bxa3 {[%mdl 64] Discovered Attack} 33. Qxa3) 31... cxd4 $19 {[%emt 0:00:22][%cal Oc3e4]} ({Not} 31... Nxe4 $2 32. Qa6 c4 33. Qxb7 Rxb7 34. Re3 $19) 32. Rxd4 {[%emt 0:00:43]} Rxd4 {[%emt 0:04:38]} 33. Nxd4 {[%emt 0:00:05]} Rxd4 {[%emt 0:00:20]} (33... Qc8 $19 34. Qb4 Nd1) 34. Qxc3 $15 {[%emt 0:00:06]} Qd7 {[%emt 0:00:52]} 35. Ra2 {[%emt 0:00:40] Prevents Rd2+} b4 {[%emt 0:00:16]} (35... Rd3 $5 {[%cal Rd3c3]} 36. Qb4 f6 $15) 36. Qe1 {[%emt 0:02:37] Weighted Error Value: White=0.29 (precise) /Black=0.25 (precise)} (36. Qc5 $1 $11) 1/2-1/2

[Event "10th Cherry Blossom Classic 2023"]
[Site "Dulles"]
[Date "2023.05.25"]
[Round "1.22"]
[White "Vinod, Aarush"]
[Black "Tanenbaum, Zachary"]
[Result "1/2-1/2"]
[ECO "C24"]
[WhiteElo "1914"]
[BlackElo "2261"]
[Annotator "TA"]
[PlyCount "69"]
[EventDate "2023.05.24"]
[EventType "swiss"]
[EventCountry "USA"]
[SourceTitle "playchess.com"]
[Source "ChessBase"]
[SourceQuality "1"]
[TimeControl "5400+30"]

{[%evp 9,69,19,12,10,22,31,18,13,21,14,10,0,0,-9,-7,-5,-4,-15,-12,-13,0,-13,0,0,0,0,7,14,38,33,45,34,36,40,45,48,41,39,39,34,35,55,151,148,148,148,302,158,152,114,88,106,108,122,104,31,131,10,240,227,227,0]} 1. e4 {[%emt 0:00:04]} e5 {[%emt 0:00:01]} 2. Bc4 {[%emt 0:00:07]} Nf6 {[%emt 0:00:03]} 3. d3 {[%emt 0:00:15]} c6 {[%emt 0:00:01]} 4. Nf3 {[%emt 0:00:09]} d5 {[%emt 0:00:02]} 5. Bb3 {[%emt 0:00:13]} Bb4+ {[%emt 0:00:01]} 6. Bd2 {[%emt 0:01:03] C24: Bishop's Opening: 2...Nf6.} Bxd2+ {[%emt 0:00:08]} 7. Qxd2 {[%emt 0:00:08]} a5 {[%emt 0:00:05] Hoping for ...a4.} 8. a4 {[%emt 0:06:26] The position is equal.} (8. Nxe5 $2 {loses.} a4 9. Bxd5 cxd5 10. exd5 Nxd5 $19) 8... O-O {[%emt 0:00:09]} 9. Nxe5 {[%emt 0:03:14]} Qe7 {[%emt 0:00:19] [#]} 10. f4 $146 {[%emt 0:03:27]} ({Predecessor:} 10. Qc3 dxe4 11. O-O Nbd7 12. Nxd7 Qxd7 13. Re1 exd3 14. cxd3 Rd8 15. Na3 Qc7 16. Qc5 {½-½ Oliynyk,V (2310)-Slyusar,V UKR-ch28 FL1 email 2015}) 10... dxe4 {[%emt 0:00:07]} 11. O-O {[%emt 0:01:41]} exd3 {[%emt 0:05:18]} 12. Nxd3 {[%emt 0:08:51]} Bf5 {[%emt 0:01:26]} 13. Re1 {[%emt 0:04:28]} Qc7 {[%emt 0:03:19]} 14. Ne5 $1 {[%emt 0:07:48]} Na6 {[%emt 0:11:35][%cal Bb8a6,Ba6b4,Bb4c2][%mdl 32]} 15. Nc3 {[%emt 0:11:14]} Qb6+ {[%emt 0:12:56]} 16. Qe3 {[%emt 0:03:55]} Qxe3+ {[%emt 0:01:50]} 17. Rxe3 {[%emt 0:00:30]} Nb4 {[%emt 0:31:03]} 18. Re2 {[%emt 0:03:28]} Rae8 {[%emt 0:06:46]} 19. Rae1 {[%emt 0:04:14]} Be6 {[%emt 0:02:29]} 20. Bxe6 {[%emt 0:39:15]} Rxe6 {[%emt 0:00:10]} 21. Nc4 {[%emt 0:00:00][%csl LRa5,LRe6][%cal Be5c4,Bc4a5,Ba5b7,Bb7d6][%mdl 32]} Nxc2 {[%emt 0:08:39][%mdl 64] Deflection} 22. Rxe6 {[%emt 0:00:00]} fxe6 {[%emt 0:00:01]} 23. Rxe6 {[%emt 0:00:00]} Nd5 {[%emt 0:00:19]} 24. Nxa5 {[%emt 0:00:00]} Rxf4 {[%emt 0:00:18]} 25. Nxb7 {[%emt 0:00:00] aiming for a5.} Nde3 {[%emt 0:07:00]} (25... Nxc3 $14 26. bxc3 Rxa4) 26. h3 $16 {[%emt 0:00:00]} (26. Rxc6 $2 Rf1#) 26... Rf1+ {[%emt 0:00:17]} 27. Kh2 {[%emt 0:00:00]} Rf2 $2 {[%emt 0:00:55]} (27... h5 $16 28. Nc5 (28. Rxc6 h4 $16) 28... h4) 28. Re8+ {[%emt 0:00:00]} ({Worse is} 28. Rxc6 Rxg2+ 29. Kh1 Ne1 30. Rc8+ Kf7 31. Nd6+ Kg6 $11) (28. a5 $18) 28... Kf7 {[%emt 0:00:02]} 29. Nd6+ {[%emt 0:00:00]} Kg6 {[%emt 0:00:08]} 30. Re6+ {[%emt 0:02:04]} Kh5 {[%emt 0:00:01] [#]} 31. Re5+ $1 {[%emt 0:02:28]} Kh6 {[%emt 0:07:53]} 32. Nce4 {[%emt 0:00:14]} (32. a5 $16) 32... Rxg2+ $14 {[%emt 0:00:30]} 33. Kh1 {[%emt 0:00:01] Black must now prevent Nf5+.} Nd4 {[%emt 0:01:21] [#] Dodges Nf5+} (33... Re2 $1 $11 {and Black is okay.}) 34. Nf7+ $1 $18 {[%emt 0:00:15]} Kg6 {[%emt 0:00:03]} 35. Nh8+ {[%emt 0:00:07] Weighted Error Value: White=0.12 (very precise) /Black=0.19 (very precise)} 1/2-1/2

[Event "10th Cherry Blossom Classic 2023"]
[Site "Dulles"]
[Date "2023.05.25"]
[Round "1.23"]
[White "Ouellet, Maili-Jade"]
[Black "Baim, Elvin"]
[Result "1-0"]
[ECO "D13"]
[WhiteElo "2246"]
[BlackElo "1728"]
[Annotator "TA"]
[PlyCount "65"]
[EventDate "2023.05.24"]
[EventType "swiss"]
[EventCountry "USA"]
[SourceTitle "playchess.com"]
[Source "ChessBase"]
[SourceQuality "1"]
[TimeControl "5400+30"]

{[%evp 10,65,35,35,50,39,45,37,63,72,83,70,70,54,54,35,46,9,22,0,0,0,34,0,0,0,6,5,1,0,-5,-15,23,19,72,0,14,0,0,-14,25,25,66,73,125,124,124,121,118,56,214,210,231,210,216,219,211,218]} 1. d4 {[%emt 0:00:02]} d5 {[%emt 0:00:17]} 2. c4 {[%emt 0:00:05]} c6 {[%emt 0:01:10]} 3. Nf3 {[%emt 0:00:06]} Nf6 {[%emt 0:01:52]} 4. Nc3 {[%emt 0:00:05]} Nbd7 {[%emt 0:21:44]} 5. cxd5 {[%emt 0:01:59]} cxd5 {[%emt 0:01:28]} 6. Bf4 {[%emt 0:05:07]} a6 {[%emt 0:05:31] D13: Slav Defence: Exchange variation without ...Bf5.} 7. h3 {[%emt 0:01:22]} e6 {[%emt 0:04:35]} 8. e3 {[%emt 0:01:39]} Bb4 {[%emt 0:05:06] White is slightly better.} 9. Bd3 {[%emt 0:01:06] [#]} O-O $146 {[%emt 0:10:02]} ({Predecessor:} 9... Ne4 10. Bxe4 dxe4 11. Nd2 f5 12. Qb3 Qb6 13. Nc4 Bxc3+ 14. Qxc3 Qc6 15. Nd6+ Ke7 {1-0 Ajrapetjan,Y (2490)-Chos,A (2268) Evpatoria 2008}) 10. O-O {[%emt 0:00:21]} b5 {[%emt 0:01:44]} 11. Rc1 {[%emt 0:01:31]} Bb7 {[%emt 0:01:13]} 12. Ne5 {[%emt 0:01:57]} Rc8 {[%emt 0:03:50]} 13. Qb3 {[%emt 0:01:34]} Qa5 {[%emt 0:12:56]} 14. Nb1 {[%emt 0:08:42]} (14. a4 {seems wilder.} Bxc3 15. axb5 Bd2 16. Ra1) 14... Nxe5 {[%emt 0:08:37]} 15. Bxe5 {[%emt 0:00:57]} Nd7 {[%emt 0:01:22]} 16. Bg3 {[%emt 0:00:36]} (16. Bc7 $5 Rxc7 17. Rxc7 Qxc7 18. Qxb4 $14) 16... Be7 {[%emt 0:10:51]} 17. a3 {[%emt 0:05:24]} h6 {[%emt 0:04:42]} 18. Rc2 {[%emt 0:00:58]} Rxc2 {[%emt 0:00:32]} 19. Bxc2 {[%emt 0:00:16]} Rc8 {[%emt 0:01:18]} 20. Qd3 {[%emt 0:00:44] White threatens Qh7+ and mate.} f5 {[%emt 0:00:04]} 21. Nd2 {[%emt 0:00:52][%cal Bb1d2,Bd2b3,Bb3c5][%mdl 32]} Nf6 {[%emt 0:00:54]} (21... b4 $11) 22. f3 {[%emt 0:01:05]} (22. b4 $1 $16 {[%cal Rb4a5]} Qb6 23. Nb3) 22... b4 {[%emt 0:00:53][%cal Rb4a3]} 23. a4 {[%emt 0:01:28]} Qb6 {[%emt 0:00:13][%cal Of6e4]} 24. Bd1 {[%emt 0:06:23]} a5 {[%emt 0:00:26] aiming for ...Ba6.} 25. Be2 {[%emt 0:00:30]} Qc6 {[%emt 0:01:03]} 26. Nb3 $1 {[%emt 0:00:42]} Qb6 {[%emt 0:00:22]} ({Black should try} 26... Bd8) 27. Qb5 $1 $16 {[%emt 0:03:04]} Bd8 {[%emt 0:00:13]} 28. Nc5 {[%emt 0:01:05]} Bc6 {[%emt 0:00:32]} 29. Qd3 {[%emt 0:00:59] White has more active pieces.} ({Better is} 29. Qxb6 $16 {Qa6 would be deadly.} Bxb6 30. Rc1 (30. Nxe6 Bxa4 31. Nc5 Bxc5 $11)) 29... Ba8 $2 {[%emt 0:00:43] [#] This move loses the game for Black.} (29... Kf7 $14) 30. Qa6 $1 $18 {[%emt 0:04:07] White is clearly better.} Qxa6 {[%emt 0:00:37]} 31. Bxa6 {[%emt 0:00:07]} Rc6 {[%emt 0:00:02]} 32. Bb5 {[%emt 0:00:14]} Rb6 {[%emt 0:00:04] [#]} 33. Rc1 $1 {[%emt 0:01:36] Weighted Error Value: White=0.13 (very precise) /Black=0.23 (precise)} 1-0